[Event "2nd Gujarat Open 2019"]
[Site "Ahmedabad, Gujarat"]
[Date "2019.09.27"]
[Round "8.35"]
[White "Kishan, Gangolli"]
[Black "Aditya P Melani"]
[Result "1-0"]
[ECO "E46"]
[WhiteElo "2089"]
[BlackElo "1847"]
[Annotator "NA"]
[PlyCount "105"]
[EventDate "2019.09.22"]
[EventType "swiss"]
[EventCountry "IND"]
[SourceTitle "playchess.com"]
[Source "ChessBase"]
[SourceQuality "1"]
[TimeControl "5400+30"]

1. d4 {[%emt 0:00:00]} Nf6 {[%emt 0:00:12]} 2. c4 {[%emt 0:01:12]} e6 {[%emt 0:01:38]} 3. Nc3 {[%emt 0:00:14]} Bb4 {[%emt 0:00:40]} 4. e3 {[%emt 0:00:12]} O-O {[%emt 0:00:05]} 5. Bd2 {[%emt 0:00:16]} c5 {[%emt 0:01:14]} 6. a3 {[%emt 0:00:44]} Bxc3 {[%emt 0:00:06]} 7. Bxc3 {[%emt 0:00:18]} d6 {[%emt 0:00:09]} 8. Bd3 {[%emt 0:03:44]} Nbd7 {[%emt 0:01:25]} 9. Ne2 {[%emt 0:05:18]} b6 {[%emt 0:02:57]} 10. O-O {[%emt 0:02:02]} Bb7 {[%emt 0:00:09]} 11. b4 {[%emt 0:18:55]} Rc8 {[%emt 0:04:23]} 12. Qb1 {[%emt 0:03:28]} h6 {[%emt 0:10:26]} 13. Rd1 {[%emt 0:01:56]} cxd4 {[%emt 0:06:36]} 14. exd4 {[%emt 0:02:01]} Rc7 {[%emt 0:01:39]} 15. Ng3 {[%emt 0:04:35]} Qa8 {[%emt 0:03:27]} 16. f3 {[%emt 0:01:05]} h5 {[%emt 0:01:57]} 17. Nf1 {[%emt 0:08:27]} Rfc8 {[%emt 0:04:38]} 18. Be1 {[%emt 0:03:04]} Rxc4 {[%emt 0:05:44]} 19. Bxc4 {[%emt 0:01:31]} Rxc4 {[%emt 0:00:02]} 20. Ne3 {[%emt 0:01:11]} Rc8 {[%emt 0:02:03]} 21. Bg3 {[%emt 0:00:59]} Qb8 {[%emt 0:09:06]} 22. Rc1 {[%emt 0:00:59]} b5 {[%emt 0:00:49]} 23. Rxc8+ {[%emt 0:04:11]} Bxc8 {[%emt 0:01:09]} 24. Qc2 {[%emt 0:00:33]} Nb6 {[%emt 0:01:11]} 25. Qc6 {[%emt 0:01:13]} Bd7 {[%emt 0:02:58]} 26. Qxd6 {[%emt 0:00:38]} Qc8 {[%emt 0:00:22]} 27. Qb8 {[%emt 0:03:14]} Qxb8 {[%emt 0:02:24]} 28. Bxb8 {[%emt 0:00:07]} a6 {[%emt 0:00:02]} 29. Rc1 {[%emt 0:00:15]} Nfd5 {[%emt 0:00:01]} 30. Nxd5 {[%emt 0:00:46]} Nxd5 {[%emt 0:00:10]} 31. Bd6 {[%emt 0:01:22]} Kh7 {[%emt 0:00:18]} 32. Kf2 {[%emt 0:01:28]} Kg6 {[%emt 0:00:25]} 33. Ke2 {[%emt 0:01:21]} Kf5 {[%emt 0:02:05]} 34. Kd3 {[%emt 0:00:26]} g5 {[%emt 0:00:50]} 35. g3 {[%emt 0:01:46]} Kg6 {[%emt 0:03:07]} 36. h4 {[%emt 0:06:43]} f6 {[%emt 0:02:11]} 37. hxg5 {[%emt 0:01:08]} Kxg5 {[%emt 0:00:22]} 38. Ke4 {[%emt 0:03:06]} Be8 {[%emt 0:01:49]} 39. f4+ {[%emt 0:02:17]} Kg4 {[%emt 0:00:02]} 40. f5 {[%emt 0:00:39]} Bf7 {[%emt 0:00:02]} 41. fxe6 {[%emt 0:01:40]} Bxe6 {[%emt 0:00:01]} 42. Rc5 {[%emt 0:01:32]} Nb6 {[%emt 0:00:07]} 43. d5 {[%emt 0:01:08]} Bd7 {[%emt 0:02:26]} 44. Rc7 {[%emt 0:01:21]} Bf5+ {[%emt 0:00:40]} 45. Kd4 {[%emt 0:00:18]} Nc4 {[%emt 0:00:02]} 46. Rg7+ {[%emt 0:00:23]} Kf3 {[%emt 0:00:01]} 47. Bc7 {[%emt 0:00:34]} Nxa3 {[%emt 0:00:25]} 48. d6 {[%emt 0:01:17]} Nc2+ {[%emt 0:00:13]} 49. Kc5 {[%emt 0:01:54]} a5 {[%emt 0:00:52]} 50. bxa5 {[%emt 0:01:13]} b4 {[%emt 0:00:05]} 51. d7 {[%emt 0:00:09]} Bxd7 {[%emt 0:00:06]} 52. Rxd7 {[%emt 0:00:05]} b3 {[%emt 0:00:01]} 53. Rd3+ {[%emt 0:00:07]} 1-0

[Event "2nd Gujarat Open 2019"]
[Site "Ahmedabad, Gujarat"]
[Date "2019.09.27"]
[Round "8.36"]
[White "Anadkat Kartavya"]
[Black "Ananmay Sharma"]
[Result "1-0"]
[ECO "B12"]
[WhiteElo "2088"]
[BlackElo "1734"]
[Annotator "NA"]
[PlyCount "85"]
[EventDate "2019.09.22"]
[EventType "swiss"]
[EventCountry "IND"]
[SourceTitle "playchess.com"]
[Source "ChessBase"]
[SourceQuality "1"]
[TimeControl "5400+30"]

1. e4 {[%emt 0:00:00]} c6 {[%emt 0:00:00]} 2. d4 {[%emt 0:00:00]} d5 {[%emt 0:00:38]} 3. e5 {[%emt 0:00:00]} Bf5 {[%emt 0:00:52]} 4. g4 {[%emt 0:00:00]} Be4 {[%emt 0:00:39]} 5. f3 {[%emt 0:00:00]} Bg6 {[%emt 0:00:55]} 6. e6 {[%emt 0:00:00]} Qd6 {[%emt 0:01:07]} 7. exf7+ {[%emt 0:00:17]} Bxf7 {[%emt 0:00:02]} 8. f4 {[%emt 0:00:17]} g5 {[%emt 0:17:28]} 9. Nf3 {[%emt 0:05:05]} gxf4 {[%emt 0:02:02]} 10. Ne5 {[%emt 0:01:42]} Qe6 {[%emt 0:01:36]} 11. Bd3 {[%emt 0:09:08]} Bg6 {[%emt 0:03:37]} 12. Bxf4 {[%emt 0:02:13]} Nd7 {[%emt 0:01:46]} 13. Qe2 {[%emt 0:04:41]} Bxd3 {[%emt 0:02:53]} 14. cxd3 {[%emt 0:00:01]} Bg7 {[%emt 0:01:47]} 15. Nd2 {[%emt 0:01:01]} Nh6 {[%emt 0:03:47]} 16. h3 {[%emt 0:05:55]} Nf7 {[%emt 0:04:42]} 17. Ndf3 {[%emt 0:00:36]} Rf8 {[%emt 0:02:21]} 18. Bg3 {[%emt 0:11:03]} Bh6 {[%emt 0:07:39]} 19. O-O {[%emt 0:02:25]} Nfxe5 {[%emt 0:04:37]} 20. dxe5 {[%emt 0:02:04]} Bf4 {[%emt 0:02:46]} 21. Nd4 {[%emt 0:06:21]} Qh6 {[%emt 0:02:12]} 22. Bxf4 {[%emt 0:06:21]} Rxf4 {[%emt 0:00:04]} 23. Nf5 {[%emt 0:01:38]} Rxf1+ 24. Qxf1 {[%emt 0:06:01]} Qg5 {[%emt 0:03:22]} 25. Qe2 {[%emt 0:02:04]} h5 {[%emt 0:01:57]} 26. Rf1 {[%emt 0:03:14]} O-O-O {[%emt 0:05:22]} 27. h4 {[%emt 0:06:21]} Qxg4+ {[%emt 0:01:17]} 28. Qxg4 {[%emt 0:00:02]} hxg4 {[%emt 0:00:02]} 29. Nxe7+ {[%emt 0:00:03]} Kc7 {[%emt 0:03:09]} 30. Ng6 {[%emt 0:00:46]} Nc5 {[%emt 0:01:32]} 31. h5 {[%emt 0:01:44]} Rg8 {[%emt 0:01:27]} 32. Rf7+ {[%emt 0:00:06]} Kb6 {[%emt 0:00:14]} 33. b4 {[%emt 0:02:08]} Ne6 {[%emt 0:00:28]} 34. Rf6 {[%emt 0:00:47]} Ng5 {[%emt 0:00:55]} 35. e6 {[%emt 0:00:39]} Kc7 {[%emt 0:01:40]} 36. h6 {[%emt 0:05:36]} Nh7 {[%emt 0:05:47]} 37. Rf7+ {[%emt 0:01:21]} Kd8 {[%emt 0:00:42]} 38. Rxh7 {[%emt 0:03:00]} Rxg6 {[%emt 0:00:05]} 39. Rd7+ {[%emt 0:00:01]} Ke8 {[%emt 0:01:57]} 40. h7 {[%emt 0:00:09]} Rh6 {[%emt 0:00:10]} 41. Rxb7 {[%emt 0:00:04]} Kf8 {[%emt 0:00:12]} 42. h8=Q+ {[%emt 0:00:13]} Rxh8 {[%emt 0:00:07]} 43. Rb8+ {[%emt 0:00:03]} 1-0

[Event "2nd Gujarat Open 2019"]
[Site "Ahmedabad, Gujarat"]
[Date "2019.09.28"]
[Round "9.2"]
[White "Saptarshi, Roy"]
[Black "Himanshu, Sharma"]
[Result "1-0"]
[ECO "B47"]
[WhiteElo "2480"]
[BlackElo "2408"]
[Annotator "ChessBase"]
[PlyCount "125"]
[EventDate "2019.09.22"]
[EventType "swiss"]
[EventCountry "IND"]
[SourceTitle "playchess.com"]
[Source "ChessBase"]
[SourceQuality "1"]
[TimeControl "5400+30"]

1. e4 {[%emt 0:00:00]} c5 {[%emt 0:00:00]} 2. Nf3 {[%emt 0:00:00]} e6 {[%emt 0:00:00]} 3. d4 {[%emt 0:00:12]} cxd4 {[%emt 0:00:00]} 4. Nxd4 {[%emt 0:00:05]} Nc6 {[%emt 0:00:00]} 5. Nc3 {[%emt 0:00:16]} Qc7 {[%emt 0:00:02]} 6. g3 {[%emt 0:00:45]} a6 {[%emt 0:00:25]} 7. Bg2 {[%emt 0:00:07]} Nf6 {[%emt 0:00:20]} 8. O-O {[%emt 0:00:36]} d6 {[%emt 0:00:39]} 9. Nb3 {[%emt 0:01:06]} Be7 {[%emt 0:05:54]} 10. a4 {[%emt 0:02:18]} b6 {[%emt 0:00:20]} 11. f4 {[%emt 0:00:26]} Bb7 {[%emt 0:04:32]} 12. Qe2 {[%emt 0:02:58]} O-O {[%emt 0:00:29]} 13. g4 {[%emt 0:02:32]} Rfe8 {[%emt 0:00:13]} 14. g5 {[%emt 0:00:20]} Nd7 {[%emt 0:00:05]} 15. Rf3 {[%emt 0:00:28]} Bf8 {[%emt 0:12:19]} 16. Rh3 {[%emt 0:00:57]} g6 {[%emt 0:00:17]} 17. Qf2 {[%emt 0:00:51]} Bg7 {[%emt 0:03:02]} 18. f5 {[%emt 0:09:39]} Nb4 {[%emt 0:10:53]} 19. f6 {[%emt 0:00:47]} Bf8 {[%emt 0:07:01]} 20. Bf4 {[%emt 0:06:30]} Nc5 {[%emt 0:04:29]} 21. Rf1 {[%emt 0:11:43]} e5 {[%emt 0:01:50]} 22. Be3 {[%emt 0:19:47]} Bc8 {[%emt 0:07:54]} 23. Rh4 {[%emt 0:00:12]} Rd8 {[%emt 0:06:47]} 24. Nd5 {[%emt 0:02:31]} Nxd5 {[%emt 0:00:20]} 25. exd5 {[%emt 0:00:04]} Rb8 {[%emt 0:05:36]} 26. Nd2 {[%emt 0:09:36]} Bf5 {[%emt 0:04:08]} 27. Bh3 {[%emt 0:08:54]} Bxh3 {[%emt 0:05:36]} 28. Rxh3 {[%emt 0:00:05]} b5 {[%emt 0:02:09]} 29. axb5 {[%emt 0:02:01]} Rxb5 {[%emt 0:01:13]} 30. b3 {[%emt 0:00:11]} Rb4 {[%emt 0:07:20]} 31. Bxc5 {[%emt 0:07:21]} Rg4+ {[%emt 0:04:07]} 32. Rg3 {[%emt 0:00:04]} Rxg3+ {[%emt 0:00:03]} 33. hxg3 {[%emt 0:00:04]} dxc5 {[%emt 0:01:30]} 34. c4 {[%emt 0:00:15]} Rb8 {[%emt 0:00:14]} 35. Re1 {[%emt 0:01:39]} a5 {[%emt 0:00:12]} 36. Qe3 {[%emt 0:00:49]} Bd6 {[%emt 0:02:53]} 37. Ne4 {[%emt 0:00:19]} Bf8 {[%emt 0:00:51]} 38. Rd1 {[%emt 0:01:48]} Rb6 {[%emt 0:01:19]} 39. Kg2 {[%emt 0:00:34]} Qb7 {[%emt 0:02:38]} 40. Rd3 {[%emt 0:02:56]} a4 {[%emt 0:00:16]} 41. bxa4 {[%emt 0:00:09]} Rb1 {[%emt 0:00:25]} 42. Nd2 {[%emt 0:02:50]} Rb2 {[%emt 0:01:13]} 43. Kf3 {[%emt 0:02:26]} Qd7 {[%emt 0:00:45]} 44. Qxe5 {[%emt 0:00:17]} Rc2 {[%emt 0:00:20]} 45. d6 {[%emt 0:02:08]} h5 {[%emt 0:00:12]} 46. Kg2 {[%emt 0:01:02]} h4 {[%emt 0:00:50]} 47. Kh2 {[%emt 0:00:33]} hxg3+ {[%emt 0:00:37]} 48. Kxg3 {[%emt 0:00:08]} Rc1 {[%emt 0:00:15]} 49. Ne4 {[%emt 0:01:30]} Rh1 {[%emt 0:00:38]} 50. Nf2 {[%emt 0:00:27]} Rg1+ {[%emt 0:00:21]} 51. Kh2 {[%emt 0:00:05]} Rc1 {[%emt 0:00:12]} 52. Qxc5 {[%emt 0:01:18]} Qe6 {[%emt 0:00:59]} 53. Qd5 {[%emt 0:00:57]} Qe2 {[%emt 0:00:23]} 54. Rd2 {[%emt 0:00:19]} Qe1 {[%emt 0:00:34]} 55. d7 {[%emt 0:00:29]} Qg1+ {[%emt 0:00:24]} 56. Kh3 {[%emt 0:00:01]} Rc3+ {[%emt 0:00:17]} 57. Nd3 {[%emt 0:00:37]} Qf1+ {[%emt 0:00:12]} 58. Kh2 {[%emt 0:00:01]} Rxc4 {[%emt 0:01:16]} 59. Nf2 {[%emt 0:01:24]} Rc1 {[%emt 0:01:08]} 60. d8=Q {[%emt 0:00:25]} Qg1+ {[%emt 0:00:26]} 61. Kh3 {[%emt 0:00:01]} Qf1+ {[%emt 0:00:24]} 62. Qg2 {[%emt 0:00:16]} Rc3+ {[%emt 0:00:37]} 63. Kh2 {[%emt 0:00:16]} 1-0

[Event "2nd Gujarat Open 2019"]
[Site "Ahmedabad, Gujarat"]
[Date "2019.09.28"]
[Round "9.3"]
[White "Deepan Chakkravarthy J."]
[Black "Neelash Saha"]
[Result "0-1"]
[ECO "A46"]
[WhiteElo "2539"]
[BlackElo "2334"]
[Annotator "ChessBase"]
[PlyCount "82"]
[EventDate "2019.09.22"]
[EventType "swiss"]
[EventCountry "IND"]
[SourceTitle "playchess.com"]
[Source "ChessBase"]
[SourceQuality "1"]
[TimeControl "5400+30"]

1. Nf3 {[%emt 0:02:10]} Nf6 {[%emt 0:00:00]} 2. d4 {[%emt 0:00:06]} e6 {[%emt 0:00:00]} 3. Bg5 {[%emt 0:00:05]} h6 {[%emt 0:03:12]} 4. Bh4 {[%emt 0:00:33]} Be7 {[%emt 0:00:42]} 5. e3 {[%emt 0:00:14]} c5 {[%emt 0:03:12]} 6. Nbd2 {[%emt 0:01:01]} O-O {[%emt 0:01:00]} 7. Bd3 {[%emt 0:00:33]} b6 {[%emt 0:05:31]} 8. c3 {[%emt 0:00:53]} Ba6 {[%emt 0:01:32]} 9. Bxa6 {[%emt 0:00:36]} Nxa6 {[%emt 0:00:03]} 10. Qe2 {[%emt 0:00:06]} Nb8 {[%emt 0:00:04]} 11. Bxf6 {[%emt 0:02:33]} Bxf6 {[%emt 0:00:03]} 12. g4 {[%emt 0:00:04]} g6 {[%emt 0:06:05]} 13. h4 {[%emt 0:00:06]} Bg7 {[%emt 0:00:30]} 14. Rd1 {[%emt 0:24:10]} Qe7 {[%emt 0:05:08]} 15. Ne5 {[%emt 0:07:00]} d6 {[%emt 0:07:04]} 16. Nd3 {[%emt 0:01:47]} Nd7 {[%emt 0:09:55]} 17. Ne4 {[%emt 0:12:01]} d5 {[%emt 0:13:00]} 18. Ng3 {[%emt 0:00:07]} e5 {[%emt 0:00:02]} 19. dxe5 {[%emt 0:01:32]} Nxe5 {[%emt 0:00:03]} 20. Nf4 {[%emt 0:03:09]} d4 {[%emt 0:00:04]} 21. cxd4 {[%emt 0:00:20]} cxd4 {[%emt 0:00:05]} 22. exd4 {[%emt 0:00:43]} Qb4+ {[%emt 0:01:21]} 23. Kf1 {[%emt 0:00:05]} Nc6 {[%emt 0:00:26]} 24. d5 {[%emt 0:15:08]} Qxf4 {[%emt 0:00:57]} 25. dxc6 {[%emt 0:00:04]} Rac8 {[%emt 0:02:49]} 26. Qc2 {[%emt 0:02:13]} Qf3 {[%emt 0:01:13]} 27. c7 {[%emt 0:12:40]} Rxc7 {[%emt 0:02:54]} 28. Qxc7 {[%emt 0:00:15]} Qxd1+ {[%emt 0:00:03]} 29. Kg2 {[%emt 0:00:03]} Qd5+ {[%emt 0:00:21]} 30. f3 {[%emt 0:00:15]} Qxa2 {[%emt 0:00:42]} 31. Re1 {[%emt 0:00:04]} Qxb2+ {[%emt 0:01:27]} 32. Re2 {[%emt 0:01:00]} Qa1 {[%emt 0:01:49]} 33. h5 {[%emt 0:00:08]} Qa6 {[%emt 0:02:52]} 34. Re7 {[%emt 0:13:08]} Rc8 {[%emt 0:01:46]} 35. Qd7 {[%emt 0:00:04]} Rc2+ {[%emt 0:02:03]} 36. Kh3 {[%emt 0:00:04]} Qa2 {[%emt 0:00:12]} 37. Re8+ {[%emt 0:01:53]} Kh7 {[%emt 0:00:37]} 38. hxg6+ {[%emt 0:01:26]} fxg6 {[%emt 0:00:17]} 39. Nf1 Rf2 {[%emt 0:01:44]} 40. Qd3 {[%emt 0:00:38]} Qa1 {[%emt 0:01:13]} 41. Ng3 {[%emt 0:00:56]} Qg1 {[%emt 0:00:27]} 0-1

[Event "2nd Gujarat Open 2019"]
[Site "Ahmedabad, Gujarat"]
[Date "2019.09.28"]
[Round "9.4"]
[White "Sahoo, Utkal Ranjan"]
[Black "Chanda, Sandipan"]
[Result "0-1"]
[ECO "A80"]
[WhiteElo "2329"]
[BlackElo "2529"]
[Annotator "ChessBase"]
[PlyCount "148"]
[EventDate "2019.09.22"]
[EventType "swiss"]
[EventCountry "IND"]
[SourceTitle "playchess.com"]
[Source "ChessBase"]
[SourceQuality "1"]
[TimeControl "5400+30"]

1. d4 {[%emt 0:00:00]} f5 {[%emt 0:00:00]} 2. Bg5 {[%emt 0:00:00]} g6 {[%emt 0:00:00]} 3. Nc3 {[%emt 0:00:02]} Bg7 {[%emt 0:00:01]} 4. h4 {[%emt 0:00:09]} h6 {[%emt 0:00:43]} 5. Bf4 {[%emt 0:00:04]} Nf6 {[%emt 0:00:08]} 6. e3 {[%emt 0:00:05]} d6 {[%emt 0:00:09]} 7. Qf3 {[%emt 0:00:07]} Nbd7 {[%emt 0:00:09]} 8. O-O-O {[%emt 0:02:02]} c6 {[%emt 0:00:37]} 9. Qg3 {[%emt 0:10:57]} Nf8 {[%emt 0:00:33]} 10. Be2 {[%emt 0:00:39]} Be6 {[%emt 0:02:58]} 11. Bf3 {[%emt 0:02:07]} Qa5 {[%emt 0:03:58]} 12. a3 {[%emt 0:04:32]} Nd5 {[%emt 0:03:07]} 13. Nge2 {[%emt 0:03:07]} Bf7 {[%emt 0:00:25]} 14. e4 {[%emt 0:05:59]} Nxf4 {[%emt 0:01:05]} 15. Qxf4 {[%emt 0:01:20]} e5 {[%emt 0:00:34]} 16. Qd2 {[%emt 0:01:11]} fxe4 {[%emt 0:03:23]} 17. Bxe4 {[%emt 0:02:10]} d5 {[%emt 0:01:13]} 18. Bf3 {[%emt 0:00:20]} h5 {[%emt 0:11:44]} 19. dxe5 {[%emt 0:03:14]} Bh6 {[%emt 0:00:15]} 20. Nf4 {[%emt 0:00:08]} Ne6 {[%emt 0:00:15]} 21. g3 {[%emt 0:00:16]} d4 {[%emt 0:00:20]} 22. Nce2 {[%emt 0:03:03]} Qxe5 {[%emt 0:00:16]} 23. Kb1 {[%emt 0:01:57]} O-O-O {[%emt 0:01:25]} 24. Bg2 {[%emt 0:02:46]} Kb8 {[%emt 0:20:36]} 25. Nd3 {[%emt 0:05:17]} Qc7 {[%emt 0:01:02]} 26. f4 {[%emt 0:00:56]} Ng7 {[%emt 0:03:49]} 27. Bh3 {[%emt 0:18:22]} Rhe8 {[%emt 0:01:29]} 28. Rhe1 {[%emt 0:00:30]} c5 {[%emt 0:01:42]} 29. Nec1 {[%emt 0:02:02]} c4 {[%emt 0:10:41]} 30. Rxe8 {[%emt 0:01:47]} Bxe8 {[%emt 0:01:13]} 31. Ne5 {[%emt 0:02:37]} Nf5 {[%emt 0:05:12]} 32. Bxf5 {[%emt 0:01:24]} gxf5 {[%emt 0:00:08]} 33. Ne2 {[%emt 0:13:46]} d3 {[%emt 0:00:59]} 34. Nc3 {[%emt 0:00:25]} Qxe5 {[%emt 0:03:14]} 35. fxe5 {[%emt 0:00:05]} Bxd2 {[%emt 0:00:04]} 36. Rxd2 {[%emt 0:00:05]} Bc6 {[%emt 0:00:06]} 37. cxd3 {[%emt 0:03:20]} cxd3 {[%emt 0:00:05]} 38. Kc1 {[%emt 0:00:36]} Be4 {[%emt 0:00:15]} 39. Rd1 {[%emt 0:00:59]} Re8 {[%emt 0:03:39]} 40. Kd2 {[%emt 0:00:09]} Rxe5 {[%emt 0:00:10]} 41. Ke3 {[%emt 0:01:09]} Re7 {[%emt 0:00:16]} 42. Kf4 {[%emt 0:01:53]} Re8 {[%emt 0:06:30]} 43. Rd2 {[%emt 0:00:52]} Kc7 {[%emt 0:04:47]} 44. Nd1 {[%emt 0:00:38]} Kd6 {[%emt 0:04:29]} 45. Nf2 {[%emt 0:00:13]} Rg8 {[%emt 0:00:14]} 46. g4 {[%emt 0:06:08]} hxg4 {[%emt 0:04:11]} 47. Nxe4+ {[%emt 0:00:06]} fxe4 {[%emt 0:00:02]} 48. Kxe4 {[%emt 0:00:23]} Rh8 {[%emt 0:00:47]} 49. Rxd3+ {[%emt 0:00:10]} Kc6 {[%emt 0:00:04]} 50. Rc3+ {[%emt 0:01:19]} Kb6 {[%emt 0:00:26]} 51. Rb3+ {[%emt 0:00:14]} Ka6 {[%emt 0:00:04]} 52. Rd3 {[%emt 0:03:45]} Rxh4 {[%emt 0:00:11]} 53. Rd6+ {[%emt 0:00:10]} b6 {[%emt 0:00:31]} 54. Rg6 {[%emt 0:00:13]} Rh2 {[%emt 0:01:06]} 55. b4 {[%emt 0:01:04]} Ra2 {[%emt 0:01:04]} 56. Kd4 {[%emt 0:00:35]} Kb5 {[%emt 0:01:35]} 57. Rg5+ {[%emt 0:00:19]} Ka4 {[%emt 0:00:11]} 58. Rxg4 {[%emt 0:00:34]} Rxa3 {[%emt 0:00:19]} 59. Kd5 {[%emt 0:00:13]} Kb5 {[%emt 0:00:55]} 60. Kd6 {[%emt 0:00:39]} Rd3+ {[%emt 0:01:03]} 61. Kc7 {[%emt 0:00:09]} a5 {[%emt 0:01:14]} 62. bxa5 {[%emt 0:00:09]} bxa5 {[%emt 0:00:10]} 63. Rg5+ {[%emt 0:00:23]} Kb4 {[%emt 0:00:06]} 64. Kc6 {[%emt 0:00:07]} a4 {[%emt 0:00:10]} 65. Rb5+ {[%emt 0:00:10]} Kc3 {[%emt 0:00:10]} 66. Ra5 {[%emt 0:00:28]} Kb3 {[%emt 0:00:05]} 67. Rb5+ {[%emt 0:00:06]} Kc2 {[%emt 0:00:04]} 68. Kc5 {[%emt 0:01:14]} a3 {[%emt 0:00:19]} 69. Ra5 {[%emt 0:00:04]} Kb2 {[%emt 0:00:13]} 70. Kc4 {[%emt 0:00:11]} Rc3+ {[%emt 0:00:07]} 71. Kd4 {[%emt 0:00:14]} Rb3 {[%emt 0:00:05]} 72. Rh5 {[%emt 0:00:20]} a2 {[%emt 0:00:12]} 73. Rh2+ {[%emt 0:00:10]} Ka3 {[%emt 0:00:05]} 74. Rh1 {[%emt 0:00:05]} Rb1 {[%emt 0:00:05]} 0-1

[Event "2nd Gujarat Open 2019"]
[Site "Ahmedabad, Gujarat"]
[Date "2019.09.28"]
[Round "9.5"]
[White "Manush Shah"]
[Black "Nguyen, Van Huy"]
[Result "1-0"]
[ECO "A46"]
[WhiteElo "2352"]
[BlackElo "2454"]
[Annotator "ChessBase"]
[PlyCount "99"]
[EventDate "2019.09.22"]
[EventType "swiss"]
[EventCountry "IND"]
[SourceTitle "playchess.com"]
[Source "ChessBase"]
[SourceQuality "1"]
[TimeControl "5400+30"]

1. d4 {[%emt 0:00:12]} Nf6 {[%emt 0:00:03]} 2. Nf3 {[%emt 0:00:08]} d5 {[%emt 0:00:44]} 3. c4 {[%emt 0:00:17]} e6 {[%emt 0:00:24]} 4. e3 {[%emt 0:00:04]} a6 {[%emt 0:01:44]} 5. Nbd2 {[%emt 0:00:07]} c5 {[%emt 0:01:16]} 6. b3 {[%emt 0:00:13]} cxd4 {[%emt 0:03:24]} 7. exd4 {[%emt 0:01:16]} Nc6 {[%emt 0:01:32]} 8. Bb2 {[%emt 0:00:28]} g6 {[%emt 0:01:50]} 9. Be2 {[%emt 0:03:05]} Bg7 {[%emt 0:01:22]} 10. O-O {[%emt 0:06:32]} O-O {[%emt 0:00:50]} 11. Rc1 {[%emt 0:09:09]} dxc4 {[%emt 0:09:48]} 12. Nxc4 {[%emt 0:03:59]} Nd5 {[%emt 0:03:57]} 13. Qd2 {[%emt 0:04:53]} Qf6 {[%emt 0:12:05]} 14. Nce5 {[%emt 0:05:45]} Nxe5 {[%emt 0:09:06]} 15. dxe5 {[%emt 0:00:52]} Qf4 {[%emt 0:01:00]} 16. g3 {[%emt 0:05:43]} Qxd2 {[%emt 0:01:26]} 17. Nxd2 {[%emt 0:00:46]} Bd7 {[%emt 0:00:20]} 18. Nc4 {[%emt 0:04:56]} Rfd8 {[%emt 0:03:13]} 19. Bf3 {[%emt 0:13:35]} Bh6 {[%emt 0:04:40]} 20. Rcd1 {[%emt 0:01:34]} Bc6 {[%emt 0:00:47]} 21. Rfe1 {[%emt 0:08:23]} Nb4 {[%emt 0:09:34]} 22. Bxc6 {[%emt 0:00:34]} bxc6 {[%emt 0:01:53]} 23. a3 {[%emt 0:03:53]} Nd3 {[%emt 0:01:42]} 24. Re2 {[%emt 0:00:50]} Rab8 {[%emt 0:07:00]} 25. Na5 {[%emt 0:02:57]} Rbc8 {[%emt 0:00:27]} 26. Nc4 {[%emt 0:02:11]} Rb8 {[%emt 0:00:50]} 27. Na5 {[%emt 0:01:27]} Rb6 {[%emt 0:02:01]} 28. Bc3 {[%emt 0:05:36]} Rd5 {[%emt 0:01:21]} 29. Rb1 {[%emt 0:00:59]} c5 {[%emt 0:09:42]} 30. Nc4 {[%emt 0:01:14]} Rb8 {[%emt 0:00:32]} 31. f4 {[%emt 0:01:20]} g5 {[%emt 0:01:57]} 32. Ne3 {[%emt 0:00:42]} gxf4 {[%emt 0:00:08]} 33. Nxd5 {[%emt 0:00:20]} exd5 {[%emt 0:00:05]} 34. gxf4 {[%emt 0:01:27]} Nxf4 {[%emt 0:00:24]} 35. Reb2 {[%emt 0:01:36]} Bg7 {[%emt 0:02:52]} 36. Rf1 {[%emt 0:02:34]} Ne6 {[%emt 0:01:29]} 37. b4 {[%emt 0:00:37]} d4 {[%emt 0:01:23]} 38. bxc5 {[%emt 0:03:14]} Bxe5 {[%emt 0:01:26]} 39. Rxb8+ {[%emt 0:00:19]} Bxb8 {[%emt 0:00:04]} 40. Bb4 {[%emt 0:01:05]} Bc7 {[%emt 0:00:06]} 41. c6 {[%emt 0:00:52]} Kg7 {[%emt 0:00:52]} 42. Rf5 {[%emt 0:00:18]} Kg6 {[%emt 0:03:50]} 43. Rd5 {[%emt 0:00:09]} Bb6 {[%emt 0:00:06]} 44. Ba5 {[%emt 0:01:16]} Bxa5 {[%emt 0:01:11]} 45. Rxa5 {[%emt 0:00:05]} Kf6 {[%emt 0:01:30]} 46. Rxa6 {[%emt 0:01:09]} Ke5 {[%emt 0:00:14]} 47. Ra7 {[%emt 0:00:10]} Kd6 {[%emt 0:00:03]} 48. Rxf7 {[%emt 0:00:12]} Kxc6 {[%emt 0:00:03]} 49. Rxh7 {[%emt 0:00:12]} Nf4 {[%emt 0:00:03]} 50. Kf2 {[%emt 0:00:10]} 1-0